bitfinex/quotes_ETHUSD_20250222
["timestamp","ask_amount","ask_price","bid_price","bid_amount"]
[1740223386083,1.66314037,2739.9,2739.4,9.02043]
[1740223386515,1.66314037,2739.9,2739.4,5.37]
[1740223386697,3.64964,2740.0,2739.4,5.37]
[1740223387012,3.64962,2740.1,2739.4,5.37]
[1740223387215,3.64962,2740.1,2739.4,9.02041]
[1740223387388,3.64964,2740.0,2739.4,9.02041]
[1740223387715,3.64964,2740.0,2739.4,10.261451]
[1740223387913,3.64985,2739.9,2739.2,9.02068]
[1740223388112,3.65016,2739.6,2739.5,0.16854001]
[1740223388313,3.65005,2739.7,2739.2,5.37]
[1740223388520,3.65005,2739.7,2739.5,0.15562987]
[1740223388817,3.65016,2739.6,2739.2,5.37]
[1740223390817,3.65005,2739.7,2739.2,5.37]
[1740223391317,3.65018,2739.6,2739.2,5.37]
[1740223392718,3.64991,2739.8,2739.2,5.37]
[1740223393075,3.65027,2739.6,2739.2,5.37]
[1740223394324,3.65003,2739.7,2739.2,5.37]
[1740223395333,0.7613,2739.5,2739.2,5.37]
[1740223395496,3.65046,2739.4,2739.2,5.37]
[1740223396990,0.7613,2739.5,2739.2,5.37]
[1740223401538,0.7613,2739.5,2739.3,0.15669188]
[1740223401713,0.7613,2739.5,2739.2,5.37]
[1740223402042,0.7613,2739.5,2739.3,0.15669188]
[1740223402347,0.7613,2739.5,2739.2,5.37]
[1740223402550,0.7613,2739.5,2739.3,0.15669188]
[1740223402737,0.7613,2739.5,2739.2,5.37]
[1740223402938,0.7613,2739.5,2739.4,0.15669188]
[1740223403148,0.7613,2739.5,2739.2,5.37]
[1740223403353,0.7613,2739.5,2739.4,0.15669188]
[1740223403649,0.7613,2739.5,2739.2,5.37]
[1740223403856,0.7613,2739.5,2739.4,0.15669188]
[1740223404034,0.8065,2740.4,2739.4,5.37]
[1740223404242,0.8065,2740.4,2739.9,3.64975]
[1740223404613,0.8065,2740.4,2740.0,0.15639662]
[1740223404816,3.43626639,2740.6,2740.0,3.80602662]
[1740223405035,0.8065,2740.7,2740.0,3.80602662]
[1740223405860,3.0,2740.6,2740.0,3.80602662]
[1740223406040,4.08732376,2740.7,2740.0,3.80602662]
[1740223406245,0.77359838,2740.6,2740.0,9.17602662]
[1740223406433,0.77359838,2740.6,2740.0,5.52639662]
[1740223406951,0.77359838,2740.6,2740.0,9.17600662]
[1740223408134,0.77359838,2740.6,2740.0,5.52639662]
[1740223408463,7.42245838,2740.6,2740.0,5.52639662]
[1740223408765,1.18776784,2740.5,2740.0,5.52639662]
[1740223411167,3.6491,2740.4,2740.0,5.52639662]
[1740223411468,0.7507,2740.3,2740.0,5.52639662]
[1740223419750,4.93846784,2740.5,2740.0,5.52639662]
[1740223420822,3.64911,2740.4,2740.0,5.52639662]
[1740223421005,0.85875778,2740.3,2740.0,5.52639662]
[1740223423315,3.64937,2740.2,2740.0,5.52639662]
[1740223423949,0.85875778,2740.3,2740.0,0.15639662]
[1740223424120,4.50799778,2740.3,2740.0,0.15639662]
[1740223424320,4.50799778,2740.3,2739.6,5.37]
[1740223424321,0.85875778,2740.3,2739.7,3.64999]
[1740223424538,0.85875778,2740.3,2740.1,0.15505185]
[1740223424751,0.81570778,2740.2,2739.7,3.64999]
[1740223426344,4.50801778,2740.3,2739.7,3.64999]
[1740223426542,0.85875778,2740.3,2739.7,3.64995]
[1740223426852,0.85875778,2740.3,2739.7,7.2999]
[1740223427054,0.85875778,2740.3,2739.7,3.64995]
[1740223427407,0.85875778,2740.3,2739.8,3.64986]
[1740223427651,0.85875778,2740.3,2739.8,3.64982]
[1740223428812,3.7507,2740.5,2740.0,7.29911]
[1740223429012,3.7507,2740.5,2740.0,3.64955]
[1740223429210,3.7507,2740.5,2740.0,3.64954]
[1740223431605,3.7507,2740.5,2740.1,0.15505185]
[1740223431754,7.39969,2740.5,2740.1,0.15505185]
[1740223431947,1.104859,2740.4,2739.9,5.37]
[1740223432163,1.104859,2740.4,2740.0,0.15505185]
[1740223432663,4.753969,2740.4,2740.0,0.15505185]
[1740223433461,3.64936,2740.2,2740.0,0.15505185]
[1740223434590,3.764,2740.1,2740.0,0.15505185]
[1740223434888,9.04846264,2740.1,2740.0,0.15505185]
[1740223435254,0.55,2740.0,2739.4,3.65035]
[1740223435597,4.19971,2740.0,2739.5,0.14160454]
[1740223435894,7.84942,2740.0,2739.3,3.65048]
[1740223436094,4.19971,2740.0,2739.6,0.14160454]
[1740223436252,0.90486726,2739.9,2739.3,3.65048]
[1740223436451,0.90486726,2739.9,2739.7,0.14160454]
[1740223436651,0.90486726,2739.9,2739.3,3.65048]
[1740223436854,0.90486726,2739.9,2739.8,0.14204146]
[1740223437382,4.55462726,2739.9,2739.0,3.65086]
[1740223437689,3.65004,2739.7,2739.0,8.005826]
[1740223437889,7.30017,2739.7,2739.0,4.354946]
[1740223438679,7.30017,2739.7,2739.1,0.34233371]
[1740223438893,3.65004,2739.7,2739.1,5.71233371]
[1740223440006,3.65004,2739.7,2739.1,5.37]
[1740223440304,3.65004,2739.7,2739.1,9.02082]
[1740223441005,3.65028,2739.6,2739.1,5.37]
[1740223442006,3.6503,2739.5,2739.1,5.37]
[1740223444120,4.54691473,2739.7,2739.1,9.02074]
[1740223444323,0.764,2739.8,2739.1,5.37]
[1740223444476,3.65006,2739.7,2739.2,3.65062]
[1740223444789,3.764,2739.8,2739.2,3.65062]
[1740223444990,3.764,2739.8,2739.2,3.65056]
[1740223445216,7.41392,2739.8,2739.2,3.65056]
[1740223445419,3.65005,2739.7,2739.2,3.65056]
[1740223445622,5.01586273,2739.8,2739.2,3.65056]
[1740223445977,3.65003,2739.7,2739.2,3.65056]
[1740223446422,3.65003,2739.7,2739.3,0.14204146]
[1740223446590,3.65003,2739.7,2739.2,3.65056]
[1740223446926,3.65003,2739.7,2739.4,0.14265321]
[1740223447220,8.66589273,2739.8,2739.5,0.14265321]
[1740223447392,1.23157327,2739.7,2739.2,3.65056]
[1740223447596,7.41403,2739.8,2739.2,3.65056]
[1740223447597,3.764,2739.8,2739.6,0.14265321]
[1740223447788,3.764,2739.8,2739.2,3.65056]
[1740223448020,3.764,2739.8,2739.7,0.14265321]
[1740223448318,7.4139,2739.8,2739.2,3.65058]
[1740223448827,7.41391,2739.8,2739.3,0.14265321]
[1740223449127,7.41391,2739.8,2739.2,3.65058]
[1740223449128,3.764,2739.8,2739.2,3.65058]
[1740223449277,3.764,2739.8,2739.4,0.14265321]
[1740223449478,4.925374,2739.8,2739.2,3.65058]
[1740223449715,11.90121,2740.4,2739.8,3.64989]
[1740223450025,8.252,2740.4,2740.0,3.64955]
[1740223450375,3.0,2740.3,2740.0,3.64955]
[1740223450694,7.457,2740.4,2740.2,3.64934]
[1740223451294,7.457,2740.4,2740.3,0.14281709]
[1740223451621,7.457,2740.4,2740.3,3.64923]
[1740223451827,7.457,2740.4,2740.3,3.79204709]
[1740223452400,7.457,2740.4,2740.3,0.14281709]
[1740223452717,7.457,2740.4,2740.1,3.64947]
[1740223452923,7.457,2740.4,2740.3,0.14281709]
[1740223453119,7.457,2740.4,2740.2,3.64935]
[1740223453435,7.457,2740.4,2740.3,3.79204709]
[1740223454599,7.457,2740.4,2740.3,0.14281709]
[1740223454812,7.457,2740.4,2740.0,9.01955]
[1740223455022,7.457,2740.4,2740.1,3.64945]
[1740223455342,7.457,2740.4,2740.2,3.64935]
[1740223455641,7.457,2740.4,2740.2,3.79216709]
[1740223455811,7.457,2740.4,2740.3,3.64923]
[1740223456225,7.457,2740.4,2740.3,3.79204709]
[1740223458860,3.795,2740.8,2740.3,3.79204709]
[1740223459769,0.795,2741.0,2740.3,0.14281709]
[1740223459928,0.795,2741.0,2740.5,3.64894]
[1740223460128,4.68636233,2741.0,2740.5,3.64894]
[1740223460324,8.33469233,2741.0,2740.6,0.14105853]
[1740223460548,3.0,2740.8,2740.6,0.14105853]
[1740223460830,3.0,2740.8,2740.3,9.01916]
[1740223461029,3.0,2740.8,2740.4,3.79014853]
[1740223461254,3.0,2740.8,2740.4,0.14105853]
[1740223462149,3.0,2740.8,2740.5,3.64892]
[1740223462354,1.68636233,2741.0,2740.5,3.64892]
[1740223462741,1.68636233,2741.0,2740.6,0.14105853]
[1740223464027,3.55,2741.1,2740.6,3.78987853]
[1740223464541,3.7591,2741.3,2740.8,3.64856]
[1740223465066,7.40702,2741.3,2740.9,0.14086199]
[1740223465528,7.6863324,2741.3,2740.9,0.14086199]
[1740223466455,4.0384224,2741.3,2740.9,0.14086199]
[1740223466769,3.7591,2741.3,2740.9,3.78922199]
[1740223467270,7.457,2741.4,2741.2,3.64794]
[1740223467565,7.457,2741.4,2741.3,0.14078556]
[1740223467725,7.457,2741.4,2741.3,3.78868556]
[1740223468560,7.457,2741.4,2741.3,4.53234812]
[1740223469895,3.8289,2742.1,2741.6,3.64741]
[1740223470249,3.8289,2742.1,2741.7,0.13939923]
[1740223470454,0.8289,2742.1,2741.7,0.13939923]
[1740223472458,0.8289,2742.1,2741.4,5.37]
[1740223472658,0.8289,2742.1,2741.8,0.13939923]
[1740223472853,0.8289,2742.1,2741.4,5.37]
[1740223472854,1.65912872,2742.1,2741.4,5.37]
[1740223473201,6.64697,2742.0,2741.9,0.13939923]
[1740223473493,3.0,2742.0,2741.5,3.78698923]
[1740223473695,3.0,2742.0,2741.5,3.64759]
[1740223474000,3.64672,2742.2,2741.6,0.13939923]
[1740223474292,3.64725,2741.8,2741.6,0.13939923]
[1740223474594,3.64753,2741.6,2741.4,5.37]
[1740223474782,4.44885,2741.8,2741.4,5.37]
[1740223476199,8.09618,2741.8,2741.4,5.37]
[1740223476512,8.09618,2741.8,2741.5,0.13939923]
[1740223477070,8.0962,2741.8,2741.5,0.13939923]
[1740223477276,4.44885,2741.8,2741.5,0.13939923]
[1740223478887,3.6475,2741.6,2741.5,0.13939923]
[1740223481906,3.64737,2741.7,2741.5,0.13939923]
[1740223482678,7.29483,2741.7,2741.5,0.13939923]
[1740223482876,3.64737,2741.7,2741.5,0.13939923]
[1740223483176,3.6475,2741.6,2741.5,0.13939923]
[1740223483381,0.8016,2741.8,2741.5,0.13939923]
[1740223483609,7.44159,2742.1,2741.5,4.70272415]
[1740223483920,11.08854,2742.1,2741.5,3.78700923]
[1740223484328,4.19663,2742.3,2741.6,3.64747]
[1740223484484,3.64692,2742.1,2741.5,0.13939923]
[1740223484898,3.64692,2742.1,2741.5,3.78702923]
[1740223486385,4.41332,2742.1,2741.5,5.50939923]
[1740223486698,0.441332,2742.0,2741.5,5.50939923]
[1740223486917,4.41332,2742.1,2741.5,5.50939923]
[1740223487414,3.6471,2741.9,2741.5,5.50939923]
[1740223488387,4.41332,2742.1,2741.5,9.15700923]
[1740223489529,4.41332,2742.1,2741.5,5.50939923]
[1740223489827,3.64703,2742.0,2741.5,5.50939923]
[1740223491429,3.6471,2741.9,2741.5,5.50939923]
[1740223492389,4.41332,2742.1,2741.5,5.50939923]
[1740223492725,3.64698,2742.0,2741.5,5.50939923]
[1740223492932,0.7664,2742.1,2741.5,10.07264515]
[1740223493101,4.41327,2742.1,2741.5,10.07264515]
[1740223493712,3.64687,2742.1,2741.6,3.64749]
[1740223494103,3.64687,2742.1,2741.7,0.13842808]
[1740223495104,7.29379,2742.1,2741.7,0.13842808]
[1740223495505,3.64687,2742.1,2741.7,0.13842808]
[1740223495899,7.2938,2742.1,2741.7,0.13842808]
[1740223497610,3.64687,2742.1,2741.7,0.13842808]
[1740223497818,3.64698,2742.0,2741.7,0.13842808]
[1740223498198,3.64698,2742.0,2741.5,5.37]
[1740223498727,3.64698,2742.0,2741.6,0.13842808]
[1740223499133,3.64711,2741.9,2741.6,0.13842808]
[1740223499433,0.7664,2741.8,2741.6,0.13842808]
[1740223500939,4.41376,2741.8,2741.6,0.13842808]
[1740223502312,3.64737,2741.7,2741.6,0.13842808]
[1740223510455,3.64737,2741.7,2741.1,5.37]
[1740223510761,3.64766,2741.5,2741.2,0.13858083]
[1740223511170,3.64778,2741.4,2741.2,0.13858083]
[1740223513263,3.64766,2741.5,2741.2,0.13858083]
[1740223514473,3.64743,2741.7,2741.2,0.13858083]
[1740223514675,5.31144473,2741.7,2741.2,0.13858083]
[1740223514867,3.64751,2741.6,2741.2,0.13858083]
[1740223517580,3.64751,2741.6,2741.2,1.39325391]
[1740223518113,3.64751,2741.6,2741.2,0.13858083]
[1740223519287,3.64737,2741.7,2741.2,0.13858083]
[1740223522293,3.64726,2741.8,2741.2,3.78660083]
[1740223522454,3.64739,2741.7,2741.2,0.13858083]
[1740223523164,7.29462,2741.8,2741.2,0.13858083]
[1740223523486,3.64726,2741.8,2741.2,0.13858083]
[1740223523676,3.64739,2741.7,2741.2,0.13858083]
[1740223524389,3.64726,2741.8,2741.2,0.13858083]
[1740223524563,7.29459,2741.8,2741.2,0.13858083]
[1740223524764,3.64738,2741.7,2741.2,0.13858083]
[1740223525179,3.64726,2741.8,2741.2,0.13858083]
[1740223525654,3.64737,2741.7,2741.2,0.13858083]
[1740223526490,3.64726,2741.8,2741.2,3.78660083]
[1740223527284,7.2946,2741.8,2741.2,3.78660083]
[1740223527463,3.64739,2741.7,2741.2,3.78660083]
[1740223527665,3.64726,2741.8,2741.2,3.78660083]
[1740223528699,7.29459,2741.8,2741.2,3.78660083]
[1740223528994,7.29459,2741.8,2741.2,3.48660083]
[1740223529177,4.454649,2741.8,2741.3,0.13417708]
[1740223529555,3.64737,2741.7,2741.3,0.13417708]
[1740223530296,3.64753,2741.6,2741.3,0.13417708]
[1740223530484,3.64753,2741.6,2741.4,0.13417708]
[1740223530653,3.64737,2741.7,2741.1,5.37]
[1740223530857,3.64771,2741.5,2741.1,5.37]
[1740223531071,3.64771,2741.5,2741.2,0.13417708]
[1740223531797,7.29546,2741.5,2741.2,0.13417708]
[1740223532001,3.64771,2741.5,2741.2,0.13417708]
[1740223533779,3.6479,2741.3,2741.2,0.13417708]
[1740223534256,3.64807,2741.2,2740.5,16.05769]
[1740223534477,3.64807,2741.2,2740.6,3.64882]
[1740223534997,0.8202,2741.2,2740.6,5.37]
[1740223535196,3.6487,2740.7,2740.6,5.37]
[1740223536070,3.6487,2740.7,2740.0,5.37]
[1740223536274,3.64898,2740.5,2740.0,6.610966]
[1740223536662,3.64898,2740.5,2740.1,0.12012502]
[1740223537589,3.64931,2740.3,2740.1,0.12012502]
[1740223538500,6.13445543,2740.5,2740.1,0.12012502]
[1740223538664,4.46918,2740.5,2740.1,0.12012502]
[1740223539005,8.11828,2740.5,2740.1,0.12012502]
[1740223539174,4.46918,2740.5,2740.1,0.12012502]
[1740223539478,3.64912,2740.4,2740.1,0.12012502]
[1740223539777,4.46918,2740.5,2740.1,0.12012502]
[1740223547711,0.8202,2740.5,2740.1,0.12012502]
[1740223547910,3.64874,2740.7,2740.1,3.76958502]
[1740223548071,3.64883,2740.6,2740.1,0.12012502]
[1740223548563,7.453,2740.9,2740.1,1.03409152]
[1740223548761,7.453,2740.9,2740.6,3.64873]
[1740223548992,7.453,2740.9,2740.7,3.64863]
[1740223549204,7.453,2740.9,2740.8,3.64856]
[1740223549768,7.453,2740.9,2740.8,3.76985312]
[1740223552589,7.453,2740.9,2740.8,0.12129312]
[1740223552825,8.1983,2740.9,2740.2,5.37]
[1740223553124,7.453,2740.9,2740.4,3.649]
[1740223553296,7.453,2740.9,2740.5,0.12154415]
[1740223553505,11.10144,2740.9,2740.5,0.12154415]
[1740223553737,1.110144,2740.8,2740.5,0.12154415]
[1740223553900,1.110144,2740.8,2740.6,0.12154415]
[1740223554101,11.10144,2740.9,2740.2,12.66864]
[1740223554425,11.10144,2740.9,2740.3,0.12160965]
[1740223554633,3.6486,2740.8,2740.3,5.49160965]
[1740223555399,4.43343,2740.6,2740.3,5.49160965]
[1740223555758,0.443343,2740.5,2740.3,5.49160965]
[1740223555910,3.64878,2740.7,2740.3,5.49160965]
[1740223556318,3.64884,2740.6,2740.3,5.49160965]
[1740223558737,4.98319,2740.8,2740.3,5.49160965]
[1740223558944,3.64882,2740.7,2740.3,5.49160965]
[1740223559298,4.98319,2740.8,2740.4,3.64908]
[1740223559299,3.0,2740.8,2740.4,3.64908]
[1740223559522,3.0,2740.8,2740.5,3.64886]
[1740223559823,3.0,2740.8,2740.5,3.77080807]
[1740223560138,7.453,2740.9,2740.5,0.12194807]
[1740223560345,7.453,2740.9,2740.6,3.64875]
[1740223560551,7.453,2740.9,2740.7,0.12205724]
[1740223561833,6.64811,2741.2,2740.7,0.12205724]
[1740223562040,1.111582,2741.1,2740.7,0.12205724]
[1740223562632,3.0,2741.0,2740.7,0.12205724]
[1740223565274,1.111582,2741.1,2740.7,0.12205724]
[1740223567196,4.759822,2741.1,2740.7,0.12205724]
[1740223567387,3.64841,2741.0,2740.7,0.12205724]
[1740223567560,4.7892332,2741.0,2740.4,7.29807]
[1740223567761,4.7892332,2741.0,2740.5,0.12205724]
[1740223568062,1.1408232,2741.0,2740.5,3.77100724]
[1740223568507,3.64872,2740.7,2740.5,0.12205724]
[1740223568678,4.47657,2740.8,2740.5,0.12205724]
[1740223568864,5.40315332,2740.8,2740.3,5.37]
[1740223569065,1.75458332,2740.8,2740.6,0.12205724]
[1740223569266,1.75458332,2740.8,2740.3,9.01922]
[1740223569608,3.64844,2740.9,2740.3,9.01922]
[1740223569775,3.64844,2740.9,2740.4,0.12205724]
[1740223570819,3.64844,2740.9,2740.4,3.77112724]
[1740223572698,4.73157579,2741.3,2740.5,3.6489]
[1740223573003,6.64809,2741.2,2740.5,7.29778]
[1740223573205,0.68807983,2741.1,2740.6,0.12205724]
[1740223573710,0.68807983,2741.1,2740.6,3.77085724]
[1740223573887,4.33624983,2741.1,2740.6,3.77086724]
[1740223574416,4.33624983,2741.1,2740.6,0.12205724]
[1740223578608,1.66487757,2741.0,2740.6,3.77088724]
[1740223581175,1.66487757,2741.0,2740.6,0.12205724]
[1740223581514,1.66487757,2741.0,2740.6,3.77078724]
[1740223582215,1.66487757,2741.0,2740.7,3.64868]
[1740223582621,1.66487757,2741.0,2740.8,0.12154406]
[1740223582828,2.08794351,2741.5,2740.9,3.64843]
[1740223582981,0.3674669,2741.4,2740.9,3.64843]
[1740223583177,2.15618916,2741.5,2741.1,3.64814]
[1740223583421,2.15618916,2741.5,2741.1,3.64809]
[1740223583626,7.455,2741.6,2741.3,3.6479]
[1740223583829,3.0,2741.5,2741.2,0.12150039]
[1740223583984,3.0,2741.5,2741.1,7.29615]
[1740223584183,3.0,2741.5,2741.2,0.12150039]
[1740223586014,7.455,2741.6,2741.2,0.12150039]
[1740223586197,7.455,2741.6,2741.4,3.6477]
[1740223586631,10.455,2741.6,2741.5,0.12047425]
[1740223587124,7.455,2741.6,2741.5,0.12047425]
[1740223587526,7.455,2741.6,2741.5,3.76810425]
[1740223587698,7.455,2741.6,2741.5,4.50969168]
[1740223589322,7.455,2741.6,2741.5,3.76810425]
[1740223592309,7.455,2741.6,2741.5,0.12047425]
[1740223592826,7.455,2741.6,2741.5,0.12017959]
[1740223593362,7.455,2741.6,2741.4,5.37]
[1740223593527,7.455,2741.6,2741.5,0.12017959]
[1740223595527,3.64726,2741.8,2741.5,0.12017959]
[1740223596929,3.0,2741.9,2741.5,0.12017959]
[1740223598430,3.0,2741.9,2741.5,3.76780959]
[1740223598591,3.811,2742.0,2741.5,3.76780959]
[1740223598795,7.45798,2742.0,2741.5,3.76780959]
[1740223599630,3.811,2742.0,2741.5,3.76780959]
[1740223599835,7.45798,2742.0,2741.5,3.76780959]
[1740223600710,6.64698,2742.0,2741.5,3.76780959]
[1740223601968,6.64698,2742.0,2741.5,0.12017959]
[1740223602470,3.64727,2741.8,2741.5,0.12017959]
[1740223602674,4.46897,2741.8,2741.5,0.12017959]
[1740223605078,3.64737,2741.7,2741.5,0.12017959]
[1740223605451,3.6475,2741.6,2741.5,0.12017959]
[1740223605670,3.6475,2741.6,2741.0,9.0182]
[1740223605875,3.6475,2741.6,2741.5,0.11938301]
[1740223606042,4.459157,2741.6,2741.0,9.0182]
[1740223606243,7.29487,2741.7,2741.5,0.11938301]
[1740223606444,3.6475,2741.6,2741.1,3.64815]
[1740223606639,4.07816255,2741.9,2741.0,5.37]
[1740223606640,3.6471,2741.9,2741.3,3.64784]
[1740223607078,4.19694,2742.1,2741.4,3.64766]
[1740223607263,3.0,2742.0,2741.4,3.64766]
[1740223607583,6.64704,2742.0,2741.4,3.64766]
[1740223608185,5.32357911,2742.1,2741.1,3.64817]
[1740223608384,3.64694,2742.1,2741.1,3.64817]
[1740223608783,3.64694,2742.1,2741.5,7.2951]
[1740223608984,3.64694,2742.1,2741.5,3.64755]
[1740223609192,3.64694,2742.1,2741.5,3.64754]
[1740223609786,3.64694,2742.1,2741.5,7.2951]
[1740223610409,3.64694,2742.1,2741.5,3.64754]
[1740223610598,3.64694,2742.1,2741.5,7.29507]
[1740223610921,3.64694,2742.1,2741.6,3.64749]
[1740223611237,3.64694,2742.1,2741.5,3.64753]
[1740223611401,3.64694,2742.1,2741.6,0.1195794]
[1740223612708,6.6467,2742.2,2741.6,3.7670394]
[1740223613621,8.18321351,2742.2,2741.6,3.7670394]
[1740223613843,4.46401,2742.1,2741.6,3.7670394]
[1740223615841,0.8171,2742.1,2741.6,3.7670394]
[1740223616647,0.8171,2742.1,2741.6,3.7669994]
[1740223618045,3.0,2742.0,2741.6,0.1195794]
[1740223618221,0.746395,2741.9,2741.6,0.1195794]
[1740223618425,3.0,2742.0,2741.5,3.64759]
[1740223618634,3.0,2742.0,2741.6,0.11951398]
[1740223620361,3.0,2742.0,2741.6,3.76700398]
[1740223620536,3.0,2742.0,2741.6,3.64749]
[1740223620738,3.0,2742.0,2741.7,0.11951398]
[1740223621059,7.54704635,2742.0,2741.4,3.64769]
[1740223621266,7.54704635,2742.0,2741.8,0.11951398]
[1740223621473,7.54704635,2742.0,2741.4,3.64769]
[1740223621755,3.90004635,2742.0,2741.9,0.11951398]
[1740223622056,3.90004635,2742.0,2741.4,3.64769]
[1740223622359,3.0,2742.0,2741.4,7.29538]
[1740223622525,3.0,2742.0,2741.5,0.11951398]
[1740223622822,3.0,2742.0,2741.5,3.76713398]
[1740223624655,0.8171,2742.1,2741.5,0.11951398]
[1740223624856,0.8171,2742.1,2741.6,3.64749]
[1740223625494,0.8171,2742.1,2741.7,0.11951398]
[1740223625705,2.27138311,2742.1,2741.7,0.11951398]
[1740223626694,1.66373789,2742.0,2741.7,0.11951398]
[1740223627074,1.66373789,2742.0,2741.6,3.64749]
[1740223627291,1.66373789,2742.0,2741.8,0.11937212]
[1740223627492,1.66373789,2742.0,2741.6,3.64749]
[1740223627695,0.8171,2742.1,2741.9,0.11937212]
[1740223627900,0.8171,2742.1,2741.7,3.64729]
[1740223628300,0.8171,2742.1,2741.8,0.11937212]
[1740223628626,0.8171,2742.1,2741.7,3.64729]
[1740223628928,0.8171,2742.1,2741.8,0.11937212]
[1740223629234,0.8171,2742.1,2741.7,3.64729]
[1740223629526,0.8171,2742.1,2741.8,0.11937212]
[1740223630139,0.8171,2742.1,2741.7,3.64729]
[1740223630720,0.8171,2742.1,2741.8,0.11937212]
[1740223631055,0.8171,2742.1,2741.7,3.64729]
[1740223631433,0.8171,2742.1,2741.8,0.11937212]
[1740223631615,0.8171,2742.1,2741.7,3.64729]
[1740223631817,0.8171,2742.1,2741.8,0.11937212]
[1740223631998,0.8171,2742.1,2741.7,7.29453]
[1740223632203,0.8171,2742.1,2741.8,0.11937212]
[1740223632423,0.8028,2742.3,2742.1,3.64682]
[1740223632623,0.8028,2742.3,2742.2,0.11937212]
[1740223633143,2.46653789,2742.5,2742.2,0.11937212]
[1740223633333,2.46653789,2742.5,2742.2,3.76607212]
[1740223633547,1.66373789,2742.3,2742.2,0.11937212]
[1740223633840,1.66373789,2742.3,2742.0,3.64695]
[1740223634049,1.66373789,2742.3,2742.1,0.11873938]
[1740223635051,1.66373789,2742.3,2742.1,3.76554938]
[1740223638821,0.8028,2742.2,2742.1,0.11873938]
[1740223639020,0.8028,2742.2,2741.8,3.64722]
[1740223639223,1.66373789,2742.1,2741.9,0.11412663]
[1740223641353,1.66373789,2742.1,2741.7,9.01732]
[1740223641882,0.7733,2742.5,2741.8,0.11412663]
[1740223642167,1.66373789,2742.5,2742.1,3.64673]
[1740223642870,1.66373789,2742.5,2742.2,3.76074119]
[1740223649389,3.0,2742.7,2742.4,3.64638]
[1740223649549,1.66373789,2742.8,2742.4,3.64638]
[1740223649749,5.42423789,2742.8,2742.5,0.11375583]
[1740223650072,1.66373789,2742.6,2742.5,0.11375583]
[1740223650571,1.66373789,2742.6,2742.2,3.6466]
[1740223650772,1.66373789,2742.6,2742.5,0.11375583]
[1740223650971,1.66373789,2742.6,2742.3,3.64654]
[1740223651172,1.66373789,2742.6,2742.5,0.1134723]
[1740223651649,1.66373789,2742.6,2742.3,3.64654]
[1740223651837,1.66373789,2742.6,2742.4,0.1134723]
[1740223660652,3.53051582,2747.0,2743.0,3.64564]
[1740223660653,0.8328,2743.3,2743.0,3.64564]
[1740223660853,0.8328,2743.3,2743.1,0.11335235]
[1740223661889,0.8328,2743.3,2742.9,3.64577]
[1740223662088,2.49653789,2743.3,2743.2,0.11305799]
[1740223662275,3.41118968,2743.3,2742.9,3.64577]
[1740223662474,3.41118968,2743.3,2743.2,0.11305799]
[1740223662672,3.41118968,2743.3,2742.9,3.64568]
[1740223662879,3.41118968,2743.3,2743.2,0.11305799]
[1740223663092,1.74745179,2743.3,2742.9,3.64568]
[1740223663298,3.005,2743.4,2743.2,0.11305799]
[1740223663456,3.005,2743.4,2743.1,3.6455]
[1740223663658,0.005,2743.4,2743.2,0.11305799]
[1740223664190,1.66873789,2743.4,2743.2,0.11305799]
[1740223664493,1.66873789,2743.4,2743.3,0.11236031]
[1740223664898,1.66873789,2743.4,2742.9,3.6457]
[1740223665104,1.66873789,2743.4,2743.3,0.11236031]
[1740223665294,1.66873789,2743.4,2742.9,3.6457]
[1740223665468,1.66873789,2743.4,2743.3,0.11236031]
[1740223665669,1.66873789,2743.4,2742.9,3.6457]
[1740223665968,1.66873789,2743.4,2743.0,0.11236031]
[1740223667007,1.66873789,2743.4,2743.0,3.75792031]
[1740223670210,1.66873789,2743.4,2743.0,0.11236031]
[1740223670515,5.31385789,2743.4,2743.0,0.11236031]
[1740223670671,1.66873789,2743.4,2743.0,0.11236031]
[1740223671371,4.42901,2743.1,2743.0,0.11236031]
[1740223671801,3.64579,2742.9,2742.3,9.01646]
[1740223671984,1.66373789,2742.8,2742.3,9.01646]
[1740223672519,1.66373789,2742.8,2742.4,3.64636]
[1740223672874,5.30969789,2742.8,2742.3,5.37]
[1740223673074,1.66373789,2742.6,2742.3,5.37]
[1740223673312,1.66373789,2742.8,2742.3,5.37]
[1740223673511,1.66373789,2742.8,2742.3,6.271675]
[1740223674373,0.7835,2742.7,2742.3,9.918215]
[1740223678506,0.7835,2742.7,2742.3,13.564695]
[1740223678817,0.7835,2742.7,2742.3,9.918155]
[1740223679702,0.7835,2742.7,2742.3,13.564645]
[1740223680001,1.66373789,2742.8,2742.4,4.48657416]
[1740223680204,1.66373789,2742.8,2742.4,0.84023416]
[1740223680390,1.66373789,2742.8,2742.5,3.64626]
[1740223682014,1.66373789,2742.8,2742.3,12.66293]
[1740223682220,1.66373789,2742.8,2742.3,9.01645]
[1740223683513,5.30964789,2742.8,2742.3,9.01645]
[1740223684378,1.66373789,2742.8,2742.3,9.01645]
[1740223685520,1.66373789,2742.8,2742.4,3.64641]
[1740223685687,1.66373789,2742.8,2742.3,9.01645]
[1740223686519,1.66373789,2742.8,2742.4,0.10859484]
[1740223686716,1.66373789,2742.6,2742.4,0.10859484]
[1740223686907,3.6463,2742.5,2742.4,0.10859484]
[1740223687114,5.30991789,2742.6,2742.0,3.64687]
[1740223687285,5.30991789,2742.6,2742.4,0.10859484]
[1740223687486,5.30991789,2742.6,2742.1,3.64683]
[1740223687688,5.30991789,2742.6,2742.2,0.10871459]
[1740223688394,3.64632,2742.5,2742.2,0.10871459]
[1740223688597,5.30991789,2742.6,2742.2,0.10871459]
[1740223688797,5.30991789,2742.6,2742.0,3.64696]
[1740223688999,5.30991789,2742.6,2742.3,0.10871459]
[1740223689199,5.30991789,2742.6,2742.0,4.913354]
[1740223689799,5.30991789,2742.6,2742.1,0.10871459]
[1740223690209,1.66373789,2742.2,2742.1,0.10871459]
[1740223690529,6.08033789,2742.2,2741.6,9.01741]